lending/lending_fUSD_20250808
["ID","MTS","AMOUNT","RATE_DAILY","PERIOD"]
[378017580,1754669460749,-554.0,0.00018941,2]
[378017581,1754669460759,-554.0,0.00018941,2]
[378017582,1754669460769,-554.0,0.00018941,2]
[378017583,1754669460779,-554.0,0.00018941,2]
[378017584,1754669460788,-554.0,0.00018941,2]
[378017585,1754669460799,-554.0,0.00018941,2]
[378017586,1754669460808,-554.0,0.00018941,2]
[378017587,1754669460818,-554.0,0.00018941,2]
[378017588,1754669460827,-554.0,0.00018941,2]
[378017589,1754669460837,-554.0,0.00018941,2]
[378017590,1754669460847,-554.0,0.00018941,2]
[378017591,1754669460858,-554.0,0.00018941,2]
[378017592,1754669460868,-400.0,0.00018943,2]
[378017593,1754669460877,-589.79,0.00018943,2]
[378017594,1754669460887,-437.48,0.00018943,2]
[378017595,1754669460896,-400.0,0.00018943,2]
[378017596,1754669460905,-778.37,0.00018943,2]
[378017597,1754669460915,-1040.75,0.00018943,2]
[378017598,1754669460925,-400.0,0.00018943,2]
[378017599,1754669460935,-400.0,0.00018943,2]
[378017600,1754669460944,-582.38,0.00018943,2]
[378017601,1754669460954,-832.82,0.00018943,2]
[378017602,1754669460965,-400.0,0.00018943,2]
[378017603,1754669460975,-730.78,0.00018943,2]
[378017604,1754669460984,-978.87,0.00018943,2]
[378017605,1754669460993,-859.46,0.00018943,2]
[378017606,1754669461003,-1294.52,0.00018943,2]
[378017607,1754669461012,-400.0,0.00018943,2]
[378017608,1754669461021,-400.0,0.00018943,2]
[378017609,1754669461031,-1018.54,0.00018943,2]
[378017610,1754669461040,-400.0,0.00018943,2]
[378017611,1754669461050,-595.29,0.00018943,2]
[378017612,1754669461059,-670.33,0.00018943,2]
[378017613,1754669461069,-400.0,0.00018943,2]
[378017614,1754669461080,-400.0,0.00018943,2]
[378017615,1754669461090,-400.0,0.00018943,2]
[378017616,1754669461100,-410.61,0.00018943,2]
[378017617,1754669461109,-1685.44,0.00018943,2]
[378017618,1754669461120,-504.11,0.00018943,2]
[378017619,1754669461130,-400.07,0.00018943,2]
[378017620,1754669461140,-4814.45,0.00018943,2]
[378017621,1754669461150,-400.0,0.00018943,2]
[378017622,1754669461159,-475.53,0.00018943,2]
[378017623,1754669461168,-715.42,0.00018943,2]
[378017624,1754669461176,-400.0,0.00018943,2]
[378017625,1754669461186,-601.22,0.00018943,2]
[378017626,1754669461194,-400.0,0.00018943,2]
[378017627,1754669461202,-586.59,0.00018943,2]
[378017628,1754669461211,-1231.15,0.00018943,2]
[378017629,1754669461221,-421.37,0.00018943,2]
[378017630,1754669461230,-552.5,0.00018943,2]
[378017631,1754669461239,-152.542267,0.00018943,2]
[378017632,1754669461249,-2455.66,0.00018943,2]
[378017633,1754669461258,-1053.85,0.00018943,2]
[378017634,1754669461268,-224.907018,0.00018943,2]
[378017635,1754669461278,-905.25,0.00018943,2]
[378017636,1754669461287,-2834.45,0.00018943,2]
[378017637,1754669461296,-500.0,0.00018943,2]
[378017638,1754669461307,-500.0,0.00018943,2]
[378017639,1754669461318,-400.0,0.00018943,2]
[378017640,1754669461327,-1433.1,0.00018943,2]
[378017641,1754669461337,-1066.3,0.00018943,2]
[378017642,1754669461346,-1410.13,0.00018943,2]
[378017643,1754669461356,-400.0,0.00018943,2]
[378017644,1754669461365,-944.36,0.00018943,2]
[378017645,1754669461375,-518.56,0.00018943,2]
[378017646,1754669461384,-1050.54,0.00018943,2]
[378017647,1754669461392,-754.73,0.00018943,2]
[378017648,1754669461400,-591.08,0.00018943,2]
[378017649,1754669461409,-400.0,0.00018943,2]
[378017650,1754669461418,-1107.48,0.00018943,2]
[378017651,1754669461427,-469.73,0.00018943,2]
[378017652,1754669461438,-400.0,0.00018943,2]
[378017653,1754669461448,-3687.73,0.00018943,2]
[378017654,1754669461457,-531.1,0.00018943,2]
[378017655,1754669461467,-490.29,0.00018943,2]
[378017656,1754669461476,-834.33,0.00018943,2]
[378017657,1754669461486,-667.47,0.00018943,2]
[378017658,1754669461495,-3938.15,0.00018943,2]
[378017659,1754669461504,-2574.42,0.00018943,2]
[378017660,1754669461513,-1036.67,0.00018943,2]
[378017661,1754669461522,-1800.54,0.00018943,2]
[378017662,1754669461531,-3054.85,0.00018943,2]
[378017663,1754669461541,-1006.77,0.00018943,2]
[378017664,1754669461551,-1025.22,0.00018943,2]
[378017665,1754669461560,-1520.44,0.00018943,2]
[378017666,1754669461568,-640.9,0.00018943,2]
[378017667,1754669461576,-1142.56,0.00018943,2]
[378017668,1754669461583,-621.81,0.00018943,2]
[378017669,1754669461590,-4083.5,0.00018943,2]
[378017670,1754669461598,-500.0,0.00018943,2]
[378017671,1754669461605,-568.41,0.00018943,2]
[378017672,1754669461612,-524.35,0.00018943,2]
[378017673,1754669461619,-1661.41,0.00018943,2]
[378017674,1754669461628,-1298.89,0.00018943,2]
[378017675,1754669461638,-400.0,0.00018943,2]
[378017676,1754669461648,-2454.24,0.00018943,2]
[378017677,1754669461658,-541.43,0.00018943,2]
[378017678,1754669461667,-481.82615177,0.00018943,2]
[378017679,1754669461677,-540.08,0.00018943,2]
[378017680,1754669461687,-831.09,0.00018943,2]
[378017681,1754669461699,-3674.86,0.00018943,2]
[378017682,1754669461709,-400.0,0.00018943,2]
[378017683,1754669461719,-2558.52,0.00018943,2]
[378017684,1754669461728,-770.46,0.00018943,2]
[378017685,1754669461738,-931.41,0.00018943,2]
[378017686,1754669461748,-1046.41,0.00018943,2]
[378017687,1754669461758,-2675.43,0.00018943,2]
[378017688,1754669461768,-825.25,0.00018943,2]
[378017689,1754669461779,-4347.41,0.00018943,2]
[378017690,1754669461788,-6608.06,0.00018943,2]
[378017691,1754669461798,-1150.05,0.00018943,2]
[378017692,1754669461808,-400.0,0.00018944,2]
[378017693,1754669461818,-400.0,0.00018944,2]
[378017694,1754669461827,-400.0,0.00018944,2]
[378017695,1754669461836,-400.0,0.00018944,2]
[378017696,1754669461846,-400.0,0.00018944,2]
[378017697,1754669461855,-458.84,0.00018944,2]
[378017698,1754669461865,-1117.67,0.00018944,2]
[378017699,1754669461875,-421.41,0.00018944,2]
[378017700,1754669461884,-515.38,0.00018944,2]
[378017701,1754669461894,-1006.42,0.00018944,2]
[378017702,1754669461904,-400.0,0.00018944,2]
[378017703,1754669461914,-1001.32,0.00018944,2]
[378017704,1754669461924,-416.27,0.00018944,2]
[378017705,1754669461934,-400.0,0.00018944,2]
[378017706,1754669461944,-400.0,0.00018944,2]
[378017707,1754669461953,-431.24,0.00018944,2]
[378017708,1754669461963,-400.0,0.00018944,2]
[378017709,1754669461972,-296.5,0.00018944,2]
[378017710,1754669461981,-968.12,0.00018944,2]
[378017711,1754669461990,-400.0,0.00018944,2]
[378017712,1754669462000,-531.71,0.00018944,2]
[378017713,1754669462009,-400.0,0.00018944,2]
[378017714,1754669462019,-402.79,0.00018944,2]
[378017715,1754669462027,-163.51,0.00018944,2]
[378017716,1754669462037,-400.0,0.00018944,2]
[378017717,1754669462047,-400.0,0.00018944,2]
[378017718,1754669462056,-839.4,0.00018944,2]
[378017719,1754669462066,-400.0,0.00018944,2]
[378017720,1754669462079,-413.42,0.00018944,2]
[378017721,1754669462089,-595.6,0.00018944,2]
[378017722,1754669462099,-400.0,0.00018944,2]
[378017723,1754669462108,-1000.0,0.00018944,2]
[378017724,1754669462117,-728.4,0.00018944,2]
[378017725,1754669462126,-400.0,0.00018944,2]
[378017726,1754669462136,-400.0,0.00018944,2]
[378017727,1754669462146,-457.06,0.00018944,2]
[378017728,1754669462155,-400.0,0.00018944,2]
[378017729,1754669462164,-426.5,0.00018944,2]
[378017730,1754669462174,-400.0,0.00018944,2]
[378017731,1754669462184,-2865.41,0.00018944,2]
[378017732,1754669462193,-213.78,0.00018944,2]
[378017733,1754669462202,-513.6,0.00018944,2]
[378017734,1754669462212,-400.0,0.00018944,2]
[378017735,1754669462221,-400.0,0.00018944,2]
[378017736,1754669462230,-433.99,0.00018944,2]
[378017737,1754669462240,-1025.98,0.00018944,2]
[378017738,1754669462249,-229.69,0.00018944,2]
[378017739,1754669462258,-578.59,0.00018944,2]
[378017740,1754669462268,-400.0,0.00018944,2]
[378017741,1754669462277,-568.96,0.00018944,2]
[378017742,1754669462286,-400.0,0.00018944,2]
[378017743,1754669462295,-159.87,0.00018944,2]
[378017744,1754669462304,-400.0,0.00018944,2]
[378017745,1754669462313,-1746.19,0.00018944,2]
[378017746,1754669462323,-400.0,0.00018944,2]
[378017747,1754669462333,-400.0,0.00018944,2]
[378017748,1754669462343,-868.12,0.00018944,2]
[378017749,1754669462352,-583.5,0.00018944,2]
[378017750,1754669462361,-400.0,0.00018944,2]
[378017751,1754669462370,-511.52,0.00018944,2]
[378017752,1754669462379,-976.11,0.00018944,2]
[378017753,1754669462388,-400.0,0.00018944,2]
[378017754,1754669462400,-782.74,0.00018944,2]
[378017755,1754669462409,-400.0,0.00018944,2]
[378017756,1754669462419,-528.81,0.00018944,2]
[378017757,1754669462428,-400.0,0.00018944,2]
[378017758,1754669462438,-400.0,0.00018944,2]
[378017759,1754669462447,-400.0,0.00018944,2]
[378017760,1754669462456,-971.0,0.00018944,2]
[378017761,1754669462466,-400.0,0.00018944,2]
[378017762,1754669462480,-497.24,0.00018944,2]
[378017763,1754669462489,-1328.31,0.00018944,2]
[378017764,1754669462499,-400.0,0.00018944,2]
[378017765,1754669462508,-400.0,0.00018944,2]
[378017766,1754669462518,-492.66,0.00018944,2]
[378017767,1754669462529,-400.0,0.00018944,2]
[378017768,1754669462538,-400.0,0.00018944,2]
[378017769,1754669462548,-400.0,0.00018944,2]
[378017770,1754669462558,-400.0,0.00018944,2]
[378017771,1754669462568,-536.48,0.00018944,2]
[378017772,1754669462578,-400.0,0.00018944,2]
[378017773,1754669462587,-215.55,0.00018944,2]
[378017774,1754669462680,-1060.74,0.00018944,2]
[378017775,1754669462694,-400.0,0.00018944,2]
[378017776,1754669462704,-400.0,0.00018944,2]
[378017777,1754669462714,-857.42,0.00018944,2]
[378017778,1754669462723,-400.0,0.00018944,2]
[378017779,1754669462733,-400.0,0.00018944,2]
[378017780,1754669462743,-1331.55,0.00018944,2]
[378017781,1754669462752,-625.23,0.00018944,2]
[378017782,1754669462762,-400.0,0.00018944,2]
[378017783,1754669462771,-453.72,0.00018944,2]
[378017784,1754669462783,-425.8,0.00018944,2]
[378017785,1754669462793,-400.0,0.00018944,2]
[378017786,1754669462802,-400.0,0.00018944,2]
[378017787,1754669462812,-596.31,0.00018944,2]
[378017788,1754669462821,-245.72,0.00018944,2]
[378017789,1754669462831,-538.89,0.00018944,2]
[378017790,1754669462840,-402.64,0.00018944,2]
[378017791,1754669462850,-400.0,0.00018944,2]
[378017792,1754669462859,-400.0,0.00018944,2]
[378017793,1754669462869,-1320.59,0.00018944,2]
[378017794,1754669462879,-400.0,0.00018944,2]
[378017795,1754669462889,-284.59,0.00018944,2]
[378017796,1754669462899,-400.0,0.00018944,2]
[378017797,1754669462908,-908.21,0.00018944,2]
[378017798,1754669462918,-400.0,0.00018944,2]
[378017799,1754669462928,-400.0,0.00018944,2]
[378017800,1754669462938,-896.71,0.00018944,2]
[378017801,1754669462948,-400.0,0.00018944,2]
[378017802,1754669462957,-400.0,0.00018944,2]
[378017803,1754669462967,-400.0,0.00018944,2]
[378017804,1754669462976,-400.0,0.00018944,2]
[378017805,1754669462985,-400.0,0.00018944,2]
[378017806,1754669462995,-420.23,0.00018944,2]
[378017807,1754669463006,-3958.88,0.00018944,2]
[378017808,1754669463015,-868.76,0.00018944,2]
[378017809,1754669463024,-400.0,0.00018944,2]
[378017810,1754669463034,-466.37,0.00018944,2]
[378017811,1754669463044,-400.0,0.00018944,2]
[378017812,1754669463053,-486.29,0.00018944,2]
[378017813,1754669463063,-400.0,0.00018944,2]
[378017814,1754669463072,-400.0,0.00018944,2]
[378017815,1754669463081,-400.0,0.00018944,2]
[378017816,1754669463090,-400.0,0.00018944,2]
[378017817,1754669463100,-496.3,0.00018944,2]
[378017818,1754669463111,-544.9,0.00018944,2]
[378017819,1754669463121,-525.45,0.00018944,2]
[378017820,1754669463130,-788.21,0.00018944,2]
[378017821,1754669463140,-1540.06,0.00018944,2]
[378017822,1754669463150,-400.0,0.00018944,2]
[378017823,1754669463160,-491.6,0.00018944,2]
[378017824,1754669463170,-400.0,0.00018944,2]
[378017825,1754669463180,-1676.13,0.00018944,2]
[378017826,1754669463190,-400.0,0.00018944,2]
[378017827,1754669463200,-400.0,0.00018944,2]
[378017828,1754669463210,-406.38,0.00018944,2]
[378017829,1754669463220,-400.0,0.00018944,2]
[378017830,1754669463229,-400.0,0.00018944,2]
[378017831,1754669463239,-1543.92,0.00018944,2]
[378017832,1754669463248,-1771.46,0.00018944,2]
[378017833,1754669463259,-1276.24,0.00018944,2]
[378017834,1754669463268,-1834.76,0.00018944,2]
[378017835,1754669463278,-526.59,0.00018944,2]
[378017836,1754669463287,-910.98,0.00018944,2]
[378017837,1754669463296,-400.0,0.00018944,2]
[378017838,1754669463306,-400.0,0.00018944,2]
[378017839,1754669463316,-404.83,0.00018944,2]
[378017840,1754669463326,-460.38,0.00018944,2]
[378017841,1754669463336,-1444.29,0.00018944,2]
[378017842,1754669463346,-254.36,0.00018944,2]
[378017843,1754669463356,-615.62,0.00018944,2]
[378017844,1754669463366,-458.64,0.00018944,2]
[378017845,1754669463376,-400.0,0.00018944,2]
[378017846,1754669463386,-1214.78,0.00018944,2]
[378017847,1754669463396,-400.0,0.00018944,2]
[378017848,1754669463405,-1013.06,0.00018944,2]
[378017849,1754669463414,-497.84,0.00018944,2]
[378017850,1754669463423,-410.74,0.00018944,2]
[378017851,1754669463432,-477.13,0.00018944,2]
[378017852,1754669463442,-400.0,0.00018944,2]
[378017853,1754669463451,-402.45,0.00018944,2]
[378017854,1754669463461,-671.65,0.00018944,2]
[378017855,1754669463470,-3405.28,0.00018944,2]
[378017856,1754669463479,-460.1,0.00018944,2]
[378017857,1754669463489,-400.0,0.00018944,2]
[378017858,1754669463499,-420.14,0.00018944,2]
[378017859,1754669463509,-833.41,0.00018944,2]
[378017860,1754669463518,-400.0,0.00018944,2]
[378017861,1754669463527,-1142.08,0.00018944,2]
[378017862,1754669463537,-400.0,0.00018944,2]
[378017863,1754669463546,-777.18,0.00018944,2]
[378017864,1754669463555,-1516.44,0.00018944,2]
[378017865,1754669463564,-454.23,0.00018944,2]
[378017866,1754669463574,-400.0,0.00018944,2]
[378017867,1754669463584,-1407.46,0.00018944,2]
[378017868,1754669463593,-422.1,0.00018944,2]
[378017869,1754669463606,-4624.2,0.00018944,2]
[378017870,1754669463616,-400.0,0.00018944,2]
[378017871,1754669463626,-1458.34,0.00018944,2]
[378017872,1754669463635,-1220.89,0.00018944,2]
[378017873,1754669463645,-686.63,0.00018944,2]
[378017874,1754669463654,-1283.29,0.00018944,2]
[378017875,1754669463664,-1271.52,0.00018944,2]
[378017876,1754669463674,-400.0,0.00018944,2]
[378017877,1754669463685,-400.0,0.00018944,2]
[378017878,1754669463698,-400.0,0.00018944,2]
[378017879,1754669463708,-1531.74,0.00018944,2]
[378017880,1754669463717,-475.49179632,0.00018944,2]
[378017881,1754669463728,-516.79,0.00018944,2]
[378017882,1754669463739,-1320.06,0.00018944,2]
[378017883,1754669463748,-466.82,0.00018944,2]
[378017884,1754669463758,-1421.75,0.00018944,2]
[378017885,1754669463768,-455.48,0.00018944,2]
[378017886,1754669463778,-894.63,0.00018944,2]
[378017887,1754669463789,-400.0,0.00018944,2]
[378017888,1754669463799,-400.0,0.00018944,2]
[378017889,1754669463808,-995.6,0.00018944,2]
[378017890,1754669463818,-400.0,0.00018944,2]
[378017891,1754669463828,-675.46,0.00018944,2]
[378017892,1754669463838,-943.62,0.00018944,2]
[378017893,1754669463847,-3181.7,0.00018944,2]
[378017894,1754669463857,-400.0,0.00018944,2]
[378017895,1754669463866,-577.69,0.00018944,2]
[378017896,1754669463876,-400.0,0.00018944,2]
[378017897,1754669463885,-474.82,0.00018944,2]
[378017898,1754669463895,-225.93,0.00018944,2]
[378017899,1754669463905,-3907.01,0.00018944,2]
[378017900,1754669463915,-400.0,0.00018944,2]
[378017901,1754669463925,-400.0,0.00018944,2]
[378017902,1754669463935,-447.25,0.00018944,2]
[378017903,1754669463946,-4881.55,0.00018944,2]
[378017904,1754669463955,-400.0,0.00018944,2]
[378017905,1754669463965,-400.0,0.00018944,2]
[378017906,1754669463976,-3961.85,0.00018944,2]
[378017907,1754669463986,-400.0,0.00018944,2]
[378017908,1754669463996,-607.19,0.00018944,2]
[378017909,1754669464005,-595.94,0.00018944,2]
[378017910,1754669464015,-1995.27,0.00018944,2]
[378017911,1754669464024,-400.0,0.00018944,2]
[378017912,1754669464034,-400.0,0.00018944,2]
[378017913,1754669464043,-2151.79,0.00018944,2]
[378017914,1754669464053,-1748.15,0.00018944,2]
[378017915,1754669464062,-1071.34,0.00018944,2]
[378017916,1754669464071,-154.62,0.00018944,2]
[378017917,1754669464080,-5556.86,0.00018944,2]
[378017918,1754669464089,-776.47,0.00018944,2]
[378017919,1754669464099,-260.95200332,0.00018944,2]
[378017920,1754669464108,-4368.67,0.00018944,2]
[378017921,1754669464118,-400.0,0.00018944,2]
[378017922,1754669464127,-455.24,0.00018944,2]
[378017923,1754669464137,-454.28,0.00018944,2]
[378017924,1754669464146,-400.0,0.00018944,2]
[378017925,1754669464156,-400.0,0.00018944,2]
[378017926,1754669464165,-572.22,0.00018944,2]
[378017927,1754669464175,-552.11,0.00018944,2]
[378017928,1754669464184,-1655.65,0.00018944,2]
[378017929,1754669464194,-5326.54,0.00018944,2]
[378017930,1754669464203,-400.0,0.00018944,2]
[378017931,1754669464212,-1353.03,0.00018944,2]
[378017932,1754669464222,-400.0,0.00018944,2]
[378017933,1754669464231,-400.0,0.00018944,2]
[378017934,1754669464240,-1787.09,0.00018944,2]
[378017935,1754669464250,-437.4,0.00018944,2]
[378017936,1754669464259,-400.0,0.00018944,2]
[378017937,1754669464268,-1818.29,0.00018944,2]
[378017938,1754669464277,-448.37,0.00018944,2]
[378017939,1754669464287,-400.0,0.00018944,2]
[378017940,1754669464296,-1169.93,0.00018944,2]
[378017941,1754669464305,-3083.31,0.00018944,2]
[378017942,1754669464314,-2127.79,0.00018944,2]
[378017943,1754669464323,-509.83,0.00018944,2]
[378017944,1754669464336,-400.0,0.00018944,2]
[378017945,1754669464346,-400.0,0.00018944,2]
[378017946,1754669464355,-836.42,0.00018944,2]
[378017947,1754669464364,-740.05,0.00018944,2]
[378017948,1754669464373,-1017.06,0.00018944,2]
[378017949,1754669464382,-400.0,0.00018944,2]
[378017950,1754669464392,-3318.81,0.00018944,2]
[378017951,1754669464401,-1132.27,0.00018944,2]
[378017952,1754669464410,-1001.22,0.00018944,2]
[378017953,1754669464419,-501.43,0.00018944,2]
[378017954,1754669464429,-633.86,0.00018944,2]
[378017955,1754669464439,-197.9,0.00018944,2]
[378017956,1754669464448,-481.83,0.00018944,2]
[378017957,1754669464457,-471.36,0.00018944,2]
[378017958,1754669464467,-1748.49,0.00018944,2]
[378017959,1754669464476,-862.04,0.00018944,2]
[378017960,1754669464486,-400.0,0.00018944,2]
[378017961,1754669464496,-2373.25,0.00018944,2]
[378017962,1754669464505,-1280.13,0.00018944,2]
[378017963,1754669464514,-1010.24,0.00018944,2]
[378017964,1754669464524,-1499.55,0.00018944,2]
[378017965,1754669464533,-470.57,0.00018944,2]
[378017966,1754669464543,-1166.4,0.00018944,2]
[378017967,1754669464552,-660.66,0.00018944,2]
[378017968,1754669464561,-7523.23,0.00018944,2]
[378017969,1754669464570,-1342.86,0.00018944,2]
[378017970,1754669464580,-591.38,0.00018944,2]
[378017971,1754669464589,-1524.08,0.00018944,2]
[378017972,1754669464598,-400.0,0.00018944,2]
[378017973,1754669464608,-400.0,0.00018944,2]
[378017974,1754669464618,-439.65,0.00018944,2]
[378017975,1754669464628,-400.0,0.00018944,2]
[378017976,1754669464638,-809.05,0.00018944,2]
[378017977,1754669464647,-400.0,0.00018944,2]
[378017978,1754669464657,-5829.92,0.00018944,2]
[378017979,1754669464666,-1761.37,0.00018944,2]
[378017980,1754669464676,-195.54,0.00018944,2]
[378017981,1754669464690,-1610.05,0.00018944,2]
[378017982,1754669464706,-289.63049942,0.00018944,2]
[378017983,1754669464716,-400.0,0.00018944,2]
[378017984,1754669464725,-755.11,0.00018944,2]
[378017985,1754669464735,-643.37,0.00018944,2]
[378017986,1754669464746,-764.46,0.00018944,2]
[378017987,1754669464755,-985.59,0.00018944,2]
[378017988,1754669464764,-4533.75,0.00018944,2]
[378017989,1754669464774,-543.79,0.00018944,2]
[378017990,1754669464783,-1461.07,0.00018944,2]
[378017991,1754669464798,-577.86,0.00018944,2]
[378017992,1754669464808,-1394.99,0.00018944,2]
[378017993,1754669464817,-482.5,0.00018944,2]
[378017994,1754669464827,-3292.99,0.00018944,2]
[378017995,1754669464837,-745.45,0.00018944,2]
[378017996,1754669464846,-630.01,0.00018944,2]
[378017997,1754669464856,-591.75,0.00018944,2]
[378017998,1754669464866,-400.0,0.00018944,2]
[378017999,1754669464875,-400.0,0.00018944,2]
[378018000,1754669464885,-304.73,0.00018944,2]
[378018001,1754669464894,-571.59,0.00018944,2]
[378018002,1754669464904,-1458.03,0.00018944,2]
[378018003,1754669464913,-1230.51,0.00018944,2]
[378018004,1754669464922,-400.0,0.00018944,2]
[378018005,1754669464931,-922.39,0.00018944,2]
[378018006,1754669464943,-5116.24,0.00018944,2]
[378018007,1754669464953,-400.0,0.00018944,2]
[378018008,1754669464964,-1077.25,0.00018944,2]
[378018009,1754669464973,-1973.55,0.00018944,2]
[378018010,1754669464983,-888.02,0.00018944,2]
[378018011,1754669464992,-400.0,0.00018944,2]
[378018012,1754669465002,-1296.8,0.00018944,2]
[378018013,1754669465011,-510.38,0.00018944,2]
[378018014,1754669465021,-1075.57,0.00018944,2]
[378018015,1754669465031,-572.6,0.00018944,2]
[378018016,1754669465046,-5597.06,0.00018944,2]
[378018017,1754669465058,-638.9,0.00018944,2]
[378018018,1754669465067,-171.79,0.00018944,2]
[378018019,1754669465077,-400.0,0.00018944,2]
[378018020,1754669465086,-450.68,0.00018944,2]
[378018021,1754669465096,-533.21,0.00018944,2]
[378018022,1754669465106,-3790.94,0.00018944,2]
[378018023,1754669465116,-663.4,0.00018944,2]
[378018024,1754669465126,-3288.41,0.00018944,2]
[378018025,1754669465136,-3195.32,0.00018944,2]
[378018026,1754669465146,-400.0,0.00018944,2]
[378018027,1754669465156,-526.43,0.00018944,2]
[378018028,1754669465166,-410.16,0.00018944,2]
[378018029,1754669465176,-2852.165347,0.00018944,2]
[378018030,1754669465185,-400.0,0.00018945,2]
[378018031,1754669465195,-400.0,0.00018945,2]
[378018032,1754669465205,-400.0,0.00018945,2]
[378018033,1754669465215,-408.84,0.00018945,2]
[378018034,1754669465224,-355.36,0.00018945,2]
[378018035,1754669465234,-400.0,0.00018945,2]
[378018036,1754669465244,-400.0,0.00018945,2]
[378018037,1754669465254,-400.0,0.00018945,2]
[378018038,1754669465263,-179.21,0.00018945,2]
[378018039,1754669465273,-400.0,0.00018945,2]
[378018040,1754669465283,-520.89,0.00018945,2]
[378018041,1754669465294,-400.0,0.00018945,2]
[378018042,1754669465306,-578.65,0.00018945,2]
[378018043,1754669465316,-400.0,0.00018945,2]
[378018044,1754669465326,-400.0,0.00018945,2]
[378018045,1754669465337,-195.3,0.00018945,2]
[378018046,1754669465347,-400.0,0.00018945,2]
[378018047,1754669465357,-212.21049956,0.00018945,2]
[378018048,1754669465370,-400.0,0.00018945,2]
[378018049,1754669465386,-438.64,0.00018945,2]
[378018050,1754669465396,-400.0,0.00018945,2]
[378018051,1754669465407,-400.0,0.00018945,2]
[378018052,1754669465419,-400.0,0.00018945,2]
[378018053,1754669465430,-431.02,0.00018945,2]
[378018054,1754669465441,-453.32,0.00018945,2]
[378018055,1754669465451,-528.12,0.00018945,2]
[378018056,1754669465464,-400.0,0.00018945,2]
[378018057,1754669465475,-400.0,0.00018945,2]
[378018058,1754669465485,-400.0,0.00018945,2]
[378018059,1754669465495,-414.55,0.00018945,2]
[378018060,1754669465504,-501.96,0.00018945,2]
[378018061,1754669465515,-502.35,0.00018945,2]
[378018062,1754669465524,-400.0,0.00018945,2]
[378018063,1754669465534,-400.0,0.00018945,2]
[378018064,1754669465544,-400.0,0.00018945,2]
[378018065,1754669465554,-400.0,0.00018945,2]
[378018066,1754669465564,-400.0,0.00018945,2]
[378018067,1754669465575,-537.65,0.00018945,2]
[378018068,1754669465585,-400.0,0.00018945,2]
[378018069,1754669465595,-436.33,0.00018945,2]
[378018070,1754669465604,-400.0,0.00018945,2]
[378018071,1754669465614,-579.55,0.00018945,2]
[378018072,1754669465624,-400.0,0.00018945,2]
[378018073,1754669465634,-400.0,0.00018945,2]
[378018074,1754669465644,-400.0,0.00018945,2]
[378018075,1754669465653,-411.22,0.00018945,2]
[378018076,1754669465663,-213.74,0.00018945,2]
[378018077,1754669465673,-400.0,0.00018945,2]
[378018078,1754669465683,-400.0,0.00018945,2]
[378018079,1754669465693,-400.0,0.00018945,2]